bitfinex-derivatives/quotes_SOLF0:USTF0_20241029
["timestamp","ask_amount","ask_price","bid_price","bid_amount"]
[1730229175540,13.22828396,181.6,181.5,13.22828396]
[1730229175740,13.22828396,181.6,181.54,5.3]
[1730229176246,13.22828396,181.6,181.53,5.3]
[1730229176447,2.7538,181.58,181.53,5.3]
[1730229176744,5.53987948,181.58,181.53,5.3]
[1730229176944,2.7538,181.58,181.53,5.3]
[1730229177542,5.53850132,181.58,181.53,5.3]
[1730229178346,2.7534,181.6,181.54,2.7542]
[1730229178646,21.18058918,181.63,181.54,2.7542]
[1730229179549,2.7533,181.61,181.54,2.7542]
[1730229179750,21.18058918,181.63,181.54,2.7542]
[1730229179945,21.18058918,181.63,181.53,5.3]
[1730229180150,21.18058918,181.63,181.53,8.0544]
[1730229180649,2.7538,181.58,181.53,5.3]
[1730229180846,5.57066471,181.58,181.53,5.3]
[1730229181144,2.7538,181.58,181.53,5.3]
[1730229182851,2.73180567,181.59,181.48,21.18058918]
[1730229183149,23.00248918,181.57,181.47,5.3]
[1730229183338,1.8219,181.57,181.47,5.3]
[1730229183538,2.7542,181.55,181.5,2.7549]
[1730229183847,1.8219,181.57,181.47,5.3]
[1730229184153,2.7541,181.56,181.5,2.7549]
[1730229184351,1.8219,181.57,181.5,2.7549]
[1730229184552,2.7547,181.52,181.47,5.3]
[1730229184857,1.8219,181.57,181.47,5.3]
[1730229185238,2.7543,181.54,181.48,2.7551]
[1730229185442,1.8219,181.57,181.47,5.3]
[1730229185644,2.7543,181.55,181.49,2.7549]
[1730229185843,2.7543,181.55,181.47,5.3]
[1730229186152,1.8219,181.57,181.47,5.3]
[1730229186350,2.7543,181.54,181.49,2.755]
[1730229187650,2.7547,181.52,181.47,8.0553]
[1730229188948,1.8219,181.57,181.47,8.0553]
[1730229189943,1.8219,181.57,181.47,5.3]
[1730229190142,2.7548,181.51,181.47,5.3]
[1730229190346,2.7548,181.51,181.46,8.0555]
[1730229193255,2.7542,181.55,181.5,2.7549]
[1730229193442,1.8219,181.57,181.46,5.3]
[1730229193642,1.8219,181.57,181.43,59.54]
[1730229193851,1.8219,181.57,181.47,5.22]
[1730229194256,2.7547,181.52,181.47,5.22]
[1730229196055,2.7544,181.54,181.48,2.7551]
[1730229196247,1.8219,181.57,181.48,2.7551]
[1730229197154,1.8219,181.57,181.48,2.7552]
[1730229197747,2.7544,181.54,181.48,2.7552]
[1730229198458,2.7544,181.54,181.48,15.99635782]
[1730229199158,1.8219,181.57,181.48,13.24115782]
[1730229199352,1.8219,181.57,181.47,5.22]
[1730229199353,1.8219,181.57,181.5,13.24115782]
[1730229200057,2.7541,181.56,181.51,2.7548]
[1730229200555,1.8219,181.57,181.52,5.22]
[1730229200857,13.24115782,181.63,181.52,18.46115782]
[1730229201062,1.828,181.63,181.55,13.24115782]
[1730229201356,2.7533,181.61,181.55,15.99525782]
[1730229201558,15.06915782,181.63,181.52,18.46115782]
[1730229201861,2.7535,181.6,181.54,2.7543]
[1730229202258,2.754,181.57,181.52,2.7546]
[1730229202559,2.754,181.57,181.53,5.22]
[1730229202560,5.50537764,181.57,181.53,5.22]
[1730229203262,2.7533,181.61,181.55,15.99515782]
[1730229203463,15.06915782,181.63,181.53,5.22]
[1730229203760,13.24115782,181.61,181.53,5.22]
[1730229203964,2.7536,181.59,181.53,5.22]
[1730229204166,2.73042737,181.59,181.53,5.22]
[1730229204355,13.24115782,181.61,181.53,5.22]
[1730229204556,2.7543,181.55,181.53,5.22]
[1730229205562,2.82304964,181.56,181.49,5.22]
[1730229205764,13.24115782,181.57,181.49,5.22]
[1730229206170,2.7544,181.54,181.49,5.22]
[1730229206572,2.80044539,181.57,181.5,13.24115782]
[1730229206871,22.68680121,181.63,181.52,13.24115782]
[1730229207169,3.88072755,181.62,181.52,13.24115782]
[1730229208170,2.7538,181.58,181.52,15.99565782]
[1730229208365,5.4448288,181.58,181.52,15.99565782]
[1730229208673,2.6910288,181.58,181.52,13.24115782]
[1730229208874,15.06915782,181.63,181.49,5.22]
[1730229209069,3.88275474,181.62,181.52,13.24115782]
[1730229209272,2.7535,181.59,181.52,15.99575782]
[1730229209469,2.80819787,181.59,181.52,15.99575782]
[1730229209669,22.68680121,181.63,181.52,15.99575782]
[1730229209874,3.88455952,181.62,181.52,13.24115782]
[1730229210073,2.7538,181.58,181.53,2.7544]
[1730229210374,2.7538,181.58,181.54,5.22]
[1730229210771,2.7536,181.59,181.54,7.9742]
[1730229210965,15.06915782,181.63,181.54,5.22]
[1730229211870,2.7535,181.6,181.55,2.7541]
[1730229212880,2.7536,181.59,181.54,7.9743]
[1730229214269,5.51419754,181.59,181.54,7.9743]
[1730229214479,2.7536,181.59,181.54,7.9743]
[1730229214680,5.57373119,181.59,181.54,7.9743]
[1730229215182,2.7537,181.58,181.54,7.9743]
[1730229216674,2.754,181.57,181.54,5.22]
[1730229216884,13.24115782,181.61,181.49,13.24115782]
[1730229217085,13.24115782,181.61,181.5,5.22]
[1730229217682,13.24115782,181.61,181.52,2.7545]
[1730229218186,2.754,181.56,181.52,2.7545]
[1730229218479,2.79615633,181.57,181.5,5.22]
[1730229218689,13.24115782,181.58,181.47,13.24115782]
[1730229218985,13.24115782,181.53,181.46,5.22]
[1730229219179,13.24115782,181.53,181.46,7.9755]
[1730229219379,2.7549,181.5,181.46,7.9755]
[1730229219580,15.15675782,181.56,181.48,2.7551]
[1730229219777,2.7546,181.53,181.48,2.7551]
[1730229220085,15.15675782,181.56,181.48,2.7551]
[1730229220383,13.24115782,181.53,181.46,5.22]
[1730229221087,13.24115782,181.55,181.46,18.46115782]
[1730229221278,1.9156,181.56,181.46,18.46115782]
[1730229221675,2.7544,181.54,181.46,18.46115782]
[1730229221880,1.9156,181.56,181.46,18.46115782]
[1730229222187,2.72118053,181.58,181.5,13.24115782]
[1730229222389,7.61764339,181.59,181.51,5.18]
[1730229222582,20.85880121,181.59,181.51,5.18]
[1730229222881,2.7546,181.53,181.49,5.18]
[1730229224386,13.24115782,181.56,181.49,5.18]
[1730229224581,2.7544,181.54,181.49,5.18]
[1730229225088,13.24115782,181.56,181.49,5.18]
[1730229225988,2.7544,181.54,181.49,5.18]
[1730229226785,13.24115782,181.56,181.49,5.18]
[1730229227186,1.9204,181.55,181.49,5.18]
[1730229227589,2.7545,181.53,181.49,5.18]
[1730229228094,2.7545,181.53,181.48,5.18]
[1730229229095,2.7545,181.53,181.48,7.9351]
[1730229232794,2.7547,181.52,181.48,5.18]
[1730229234596,11.22312952,181.52,181.48,5.18]
[1730229234799,11.22312952,181.52,181.46,11.22382952]
[1730229235000,11.22312952,181.52,181.47,7.9354]
[1730229237203,8.46842952,181.49,181.47,5.18]
[1730229237693,11.22352952,181.49,181.47,5.18]
[1730229238403,2.7552,181.48,181.47,5.18]
[1730229238795,2.7552,181.48,181.44,11.22412952]
[1730229238996,2.7552,181.48,181.45,5.18]
[1730229239301,2.7556,181.46,181.42,161.5013894]
[1730229239501,8.46842952,181.46,181.42,166.6813894]
[1730229240298,8.46842952,181.45,181.35,5.8291]
[1730229240499,8.46842952,181.42,181.37,8.46842952]
[1730229240996,11.22462952,181.42,181.37,11.22522952]
[1730229241395,2.7563,181.41,181.37,11.22522952]
[1730229241901,11.22462952,181.42,181.37,11.22522952]
[1730229243003,8.46842952,181.42,181.37,11.22522952]
[1730229243205,2.7563,181.41,181.37,11.22522952]
[1730229243407,8.46842952,181.42,181.37,8.46842952]
[1730229243600,8.46842952,181.39,181.31,1.9687]
[1730229243805,8.46842952,181.38,181.32,13.64842952]
[1730229244395,8.46842952,181.38,181.33,8.46842952]
[1730229244601,8.46842952,181.39,181.34,2.7573]
[1730229245008,2.7569,181.37,181.34,2.7573]
[1730229245305,8.46842952,181.43,181.36,8.46842952]
[1730229245495,8.46842952,181.44,181.39,8.46842952]
[1730229245695,8.46842952,181.43,181.38,8.46842952]
[1730229246400,2.7562,181.42,181.38,11.22502952]
[1730229246599,8.46842952,181.42,181.37,13.64842952]
[1730229247096,2.7564,181.41,181.37,13.64842952]
[1730229248306,2.7564,181.41,181.37,16.40532952]
[1730229249610,2.7567,181.38,181.37,5.18]
[1730229250507,2.7567,181.38,181.34,11.22562952]
[1730229250811,2.7567,181.38,181.34,16.40562952]
[1730229251413,8.46842952,181.37,181.34,7.9372]
[1730229254410,2.71628779,181.38,181.35,8.46842952]
[1730229254710,8.46842952,181.42,181.37,2.7568]
[1730229254912,8.46842952,181.42,181.36,8.46842952]
[1730229255107,11.22522952,181.38,181.35,2.7571]
[1730229255513,8.46842952,181.38,181.34,5.18]
[1730229255715,2.757,181.37,181.33,16.28582952]
[1730229257107,2.757,181.37,181.33,13.52842952]
[1730229257312,2.757,181.37,181.34,2.7573]
[1730229258619,2.757,181.37,181.34,11.22572952]
[1730229259020,2.7567,181.38,181.36,8.46842952]
[1730229259323,8.46842952,181.42,181.36,8.46842952]
[1730229259515,21.63,181.45,181.35,8.46842952]
[1730229259516,8.46842952,181.4,181.35,8.46842952]
[1730229259710,2.70610307,181.39,181.36,2.7569]
[1730229260124,2.70610307,181.39,181.35,8.46842952]
[1730229260624,2.70610307,181.39,181.36,2.757]
[1730229261122,2.70610307,181.39,181.35,8.46842952]
[1730229261123,8.46842952,181.39,181.28,1.9694]
[1730229261316,8.46842952,181.34,181.28,8.46842952]
[1730229261817,8.46842952,181.34,181.27,5.06]
[1730229261818,8.46842952,181.34,181.3,11.22632952]
[1730229262424,11.22572952,181.34,181.3,11.22632952]
[1730229263917,8.46842952,181.34,181.29,8.46842952]
[1730229264125,2.7577,181.32,181.29,8.46842952]
[1730229264525,2.7578,181.31,181.29,8.46842952]
[1730229265018,8.46842952,181.34,181.29,8.46842952]
[1730229265214,2.7577,181.32,181.29,8.46842952]
[1730229265416,8.46842952,181.34,181.29,8.46842952]
[1730229265626,8.46842952,181.33,181.28,16.28662952]
[1730229265825,2.7577,181.32,181.28,16.28662952]
[1730229266426,4.1013,181.38,181.21,59.58]
[1730229266427,8.46842952,181.29,181.21,59.58]
[1730229266615,8.46842952,181.26,181.22,5.06]
[1730229266819,5.48882955,181.25,181.22,5.06]
[1730229267129,2.73002955,181.25,181.2,11.22772952]
[1730229267320,11.22702952,181.26,181.22,11.22762952]
[1730229267516,2.77529544,181.27,181.23,8.46842952]
[1730229267722,8.46842952,181.3,181.25,8.46842952]
[1730229268628,2.7583,181.28,181.25,8.46842952]
[1730229268925,2.0354,181.31,181.26,8.46842952]
[1730229269123,2.0354,181.31,181.26,13.52842952]
[1730229269317,2.758,181.3,181.26,13.52842952]
[1730229269726,8.46842952,181.3,181.26,5.06]
[1730229269932,8.46842952,181.27,181.22,5.06]
[1730229270122,11.21399696,181.26,181.22,5.06]
[1730229270323,8.46842952,181.26,181.22,5.06]
[1730229270530,8.46842952,181.24,181.22,5.06]
[1730229271127,8.46842952,181.24,181.19,11.22802952]
[1730229271430,8.46842952,181.24,181.2,5.06]
[1730229272030,2.7591,181.23,181.2,5.06]
[1730229272427,2.7586,181.26,181.22,11.22752952]
[1730229272628,8.46842952,181.27,181.22,8.46842952]
[1730229273022,5.48188193,181.27,181.23,8.46842952]
[1730229273232,2.0354,181.31,181.24,8.46842952]
[1730229273427,8.46842952,181.3,181.24,8.46842952]
[1730229273823,2.0354,181.31,181.24,8.46842952]
[1730229274131,4.7932,181.31,181.26,11.22692952]
[1730229274321,4.7932,181.31,181.26,16.28692952]
[1730229275532,13.26162952,181.31,181.26,13.52842952]
[1730229277034,11.22652952,181.29,181.26,5.06]
[1730229277230,8.46842952,181.27,181.25,5.06]
[1730229277536,8.46842952,181.27,181.23,5.06]
[1730229278332,8.46842952,181.27,181.23,7.8189]
[1730229278528,8.46842952,181.25,181.2,8.46842952]
[1730229278735,8.46842952,181.25,181.21,5.06]
[1730229279040,8.46842952,181.26,181.22,2.7592]
[1730229280235,11.22702952,181.26,181.22,2.7592]
[1730229280431,8.46842952,181.25,181.21,5.06]
[1730229280632,11.22742952,181.24,181.21,5.06]
[1730229281734,8.46842952,181.25,181.23,2.759]
[1730229281935,8.46842952,181.27,181.21,13.52842952]
[1730229282335,8.46842952,181.25,181.21,5.06]
[1730229282830,11.25532183,181.27,181.21,13.52842952]
[1730229283031,8.46842952,181.23,181.21,5.06]
[1730229283230,8.46842952,181.25,181.21,5.06]
[1730229283631,11.22722952,181.25,181.21,7.8193]
[1730229284031,8.46842952,181.27,181.22,8.46842952]
[1730229286336,13.93281027,181.28,181.23,2.7589]
[1730229286536,11.22682952,181.28,181.23,2.7589]
[1730229287128,13.93928804,181.28,181.23,2.7589]
[1730229287341,2.7584,181.27,181.23,2.7589]
[1730229287639,11.18088804,181.28,181.23,2.7589]
[1730229288045,13.93928804,181.28,181.23,2.7589]
[1730229288240,8.46842952,181.26,181.23,2.7589]
[1730229288934,11.18088804,181.28,181.24,2.7587]
[1730229289931,13.93918804,181.28,181.24,2.7587]
[1730229290643,11.18088804,181.28,181.24,2.7587]
[1730229291345,13.93918804,181.28,181.24,2.7587]
[1730229291845,2.0354,181.31,181.24,8.46842952]
[1730229292146,2.73700474,181.39,181.28,8.46842952]
[1730229292147,8.46842952,181.33,181.28,8.46842952]
[1730229292444,8.46842952,181.33,181.29,2.7581]
[1730229293538,16.57,181.37,181.29,2.7581]
[1730229293747,8.46842952,181.33,181.29,2.7581]
[1730229294442,11.22592952,181.33,181.29,2.7581]
[1730229295243,8.46842952,181.32,181.28,5.06]
[1730229295745,8.46842952,181.3,181.28,5.06]
[1730229295946,8.46842952,181.32,181.29,2.7581]
[1730229296341,11.22612952,181.32,181.28,5.06]
[1730229296644,11.22612952,181.32,181.28,7.8182]
[1730229297741,11.22632952,181.31,181.28,5.06]
[1730229299048,2.7579,181.31,181.28,5.06]
[1730229299249,11.22632952,181.31,181.28,5.06]
[1730229300349,8.46842952,181.3,181.28,5.06]
[1730229300656,8.46842952,181.3,181.24,5.06]
[1730229300657,2.75449867,181.29,181.24,5.06]
[1730229300854,8.46842952,181.27,181.24,5.06]
[1730229301357,8.46842952,181.26,181.24,5.06]
[1730229301744,20.5123,181.36,181.25,8.46842952]
[1730229301952,8.46842952,181.32,181.26,8.46842952]
[1730229302248,11.22612952,181.32,181.28,2.7581]
[1730229303749,3.9423,181.36,181.26,8.46842952]
[1730229304055,11.22562952,181.35,181.29,8.46842952]
[1730229304454,8.46842952,181.35,181.29,8.46842952]
[1730229304754,10.51402952,181.36,181.31,8.46842952]
[1730229305055,8.46842952,181.36,181.33,2.7574]
[1730229306455,4.6928,181.38,181.33,2.7574]
[1730229310653,2.757,181.37,181.32,7.8176]
[1730229313651,13.25213974,181.37,181.3,5.06]
[1730229313850,1.8771,181.36,181.3,5.06]
[1730229314649,1.936,181.38,181.3,5.06]
[1730229314854,2.73700474,181.39,181.3,5.06]
[1730229315156,15.17693974,181.4,181.3,5.06]
[1730229315356,2.7568,181.38,181.3,5.06]
[1730229315553,2.74563775,181.37,181.3,5.06]
[1730229315855,15.17693974,181.4,181.31,2.7578]
[1730229315856,2.7572,181.36,181.31,2.7578]
[1730229316060,5.45674128,181.36,181.31,2.7578]
[1730229316366,2.7572,181.36,181.31,2.7578]
[1730229317463,2.7572,181.36,181.3,5.06]
[1730229317662,2.7572,181.36,181.32,2.7576]
[1730229318665,5.47310289,181.37,181.32,2.7575]
[1730229318864,2.71610289,181.37,181.3,5.06]
[1730229319271,1.9248,181.4,181.3,5.06]
[1730229319557,2.757,181.37,181.33,2.7574]
[1730229319762,5.52481359,181.37,181.3,5.06]
[1730229319962,2.757,181.37,181.3,5.06]
[1730229320162,2.757,181.37,181.33,2.7575]
[1730229320558,2.757,181.36,181.32,2.7576]
[1730229321461,5.49669028,181.37,181.33,2.7575]
[1730229321659,2.7569,181.37,181.33,2.7575]
[1730229321864,1.9248,181.4,181.33,2.7575]
[1730229323271,2.757,181.37,181.33,2.7575]
[1730229323464,5.4485011,181.37,181.33,2.7575]
[1730229324570,1.9248,181.4,181.31,13.25213974]
[1730229324761,1.9248,181.4,181.36,2.7569]
[1730229325169,2.77483595,181.39,181.36,2.7569]
[1730229325363,1.8771,181.42,181.35,5.06]
[1730229326662,8.48057999,181.38,181.35,5.06]
[1730229326861,11.26268237,181.38,181.35,5.06]
[1730229327771,11.26268237,181.38,181.23,1.9269]
[1730229327772,8.48057999,181.36,181.23,1.9269]
[1730229328069,2.78210238,181.38,181.23,1.9269]
[1730229328070,8.48057999,181.31,181.26,8.48057999]
[1730229328274,11.23807999,181.33,181.29,2.758]
[1730229328663,2.7575,181.33,181.29,2.758]
[1730229328869,11.23807999,181.33,181.29,2.758]
[1730229329274,8.48057999,181.31,181.23,1.9269]
[1730229329469,6.64479702,181.37,181.26,2.7585]
[1730229329470,8.48057999,181.29,181.26,2.7585]
[1730229329668,8.48057999,181.29,181.24,13.54057999]
[1730229329870,8.48057999,181.29,181.24,8.48057999]
[1730229330071,8.48057999,181.28,181.25,5.06]
[1730229330573,2.7586,181.26,181.25,5.06]
[1730229330962,2.7584,181.27,181.25,5.06]
[1730229331578,2.7584,181.27,181.23,5.06]
[1730229331878,8.48057999,181.26,181.21,8.48057999]
[1730229332169,8.48057999,181.26,181.21,13.54057999]
[1730229332362,8.48057999,181.24,181.19,11.24007999]
[1730229332567,8.48057999,181.24,181.19,16.30007999]
[1730229332769,8.48057999,181.24,181.19,5.06]
[1730229333168,2.7594,181.21,181.19,5.06]
[1730229333373,2.7594,181.21,181.18,13.54057999]
[1730229333766,8.48057999,181.21,181.16,2.76]
[1730229333974,8.48057999,181.21,181.16,16.30057999]
[1730229334576,13.26118506,181.24,181.16,7.82]
[1730229334884,13.26118506,181.24,181.16,5.06]
[1730229335182,13.26118506,181.24,181.14,7.8203]
[1730229335368,13.26118506,181.22,181.12,59.6]
[1730229335575,13.26118506,181.22,181.13,5.06]
[1730229335874,2.7599,181.18,181.13,7.8205]
[1730229336071,13.26118506,181.22,181.11,13.26118506]
[1730229336271,13.26118506,181.22,181.11,18.32118506]
[1730229336480,2.7599,181.17,181.11,21.08188506]
[1730229336683,13.26118506,181.22,181.11,21.08188506]
[1730229336878,13.26118506,181.22,181.11,18.32118506]
[1730229337286,13.26118506,181.17,180.99,6.86401907]
[1730229337474,11.2216,181.16,181.05,13.26118506]
[1730229337783,2.7605,181.14,181.09,2.761]
[1730229339478,13.26118506,181.15,181.05,18.32118506]
[1730229339675,14.02365513,181.16,181.05,7.8216]
[1730229339676,13.26118506,181.12,181.05,7.8216]
[1730229339876,13.26118506,181.12,181.02,5.06]
[1730229340180,13.26118506,181.12,181.02,18.32118506]
[1730229340480,2.7611,181.1,181.05,2.7616]
[1730229341189,2.7611,181.1,181.02,18.32118506]
[1730229341190,13.26118506,181.1,181.02,5.06]
[1730229341369,13.26118506,181.1,181.0,13.26118506]
[1730229341570,2.7615,181.07,181.0,18.32118506]
[1730229341772,13.26118506,181.1,181.04,2.7618]
[1730229342186,2.7613,181.08,181.0,18.32118506]
[1730229342383,13.26118506,181.1,181.0,18.32118506]
[1730229342878,2.7612,181.09,181.04,2.7618]
[1730229343079,13.26118506,181.1,181.04,2.7618]
[1730229343477,13.26118506,181.1,181.05,2.7616]
[1730229344383,16.02218506,181.1,181.05,2.7616]
[1730229344682,13.26118506,181.1,181.04,2.7619]
[1730229345071,2.7613,181.09,181.04,2.7619]
[1730229346184,2.7613,181.09,181.0,13.26118506]
[1730229346476,13.26118506,181.1,181.05,2.7617]
[1730229346676,16.02218506,181.1,181.05,2.7617]
[1730229347272,16.02218506,181.1,181.0,13.26118506]
[1730229347273,2.7613,181.09,181.03,2.762]
[1730229347474,13.26118506,181.1,181.03,2.762]
[1730229347675,5.06,181.11,180.97,20.20238506]
[1730229347676,15.31318506,181.08,180.97,20.20238506]
[1730229348084,2.7616,181.07,181.0,2.7625]
[1730229348282,15.31318506,181.08,180.97,20.20238506]
[1730229348582,13.26118506,181.04,180.96,5.06]
[1730229348782,18.83932618,181.04,180.99,2.7627]
[1730229349085,16.07722618,181.04,180.96,5.06]
[1730229349284,2.7621,181.03,180.98,2.7627]
[1730229349478,16.07722618,181.04,180.96,5.06]
[1730229349880,2.7623,181.02,180.97,2.7629]
[1730229350189,16.07722618,181.04,180.97,2.7629]
[1730229350377,16.02348506,181.02,180.93,234.79613811]
[1730229350578,13.26118506,181.02,180.95,2.7633]
[1730229350779,15.99506762,181.02,180.93,234.79613811]
[1730229350985,2.7628,180.99,180.94,2.7633]
[1730229351286,15.99506762,181.02,180.93,234.79613811]
[1730229351686,15.99506762,181.02,180.95,2.7632]
[1730229351886,15.99506762,181.02,180.93,234.79613811]
[1730229352290,2.7627,180.99,180.93,234.79613811]
[1730229352486,15.99506762,181.02,180.9,18.32118506]
[1730229353092,16.02388506,181.0,180.95,2.7633]
[1730229353493,13.26118506,181.0,180.95,2.7633]
[1730229354290,2.7627,180.99,180.95,2.7633]
[1730229354491,13.26118506,181.0,180.9,18.32118506]
[1730229354689,15.99506762,181.02,180.98,2.7627]
[1730229354889,13.26118506,181.02,180.98,2.7627]
[1730229355297,13.26118506,181.02,180.92,13.26118506]
[1730229355591,18.32118506,181.05,180.99,2.7626]
[1730229355793,21.03521005,181.05,180.99,2.7626]
[1730229356188,2.7619,181.04,180.99,2.7626]
[1730229356896,2.7619,181.04,180.95,18.32118506]
[1730229357197,15.97521005,181.05,180.95,18.32118506]
[1730229357388,15.97521005,181.05,180.98,2.7628]
[1730229357693,15.97521005,181.05,180.95,18.32118506]
[1730229358083,2.71402499,181.05,180.97,13.26118506]
[1730229358289,3.9328,181.07,180.97,13.26118506]
[1730229358599,2.052,181.08,181.0,13.26118506]
[1730229358794,2.052,181.08,181.01,5.06]
[1730229358795,13.26118506,181.06,181.01,5.06]
[1730229358997,2.82017252,181.05,181.01,7.8222]
[1730229359194,16.02288506,181.06,181.01,7.8222]
[1730229359389,13.26118506,181.06,181.01,7.8222]
[1730229359696,2.73287633,181.05,181.01,7.8222]
[1730229360299,5.49467633,181.05,181.01,7.8222]
[1730229360485,2.73287633,181.05,181.02,2.7622]
[1730229360994,13.26118506,181.06,180.97,5.06]
[1730229361194,13.26118506,181.06,181.01,2.7623]
[1730229361195,18.81380772,181.06,181.01,2.7623]
[1730229361497,18.81380772,181.06,180.97,5.06]
[1730229362497,18.81380772,181.06,181.02,2.7622]
[1730229362697,2.7618,181.05,180.97,5.06]
[1730229363101,2.7618,181.05,181.01,2.7623]
[1730229363804,2.7619,181.04,181.01,2.7623]
[1730229363997,2.7619,181.04,181.0,2.7625]
[1730229364198,16.05210772,181.06,180.97,18.32118506]
[1730229364795,16.05210772,181.06,180.95,13.26118506]
[1730229365106,13.26118506,181.02,180.96,5.06]
[1730229365303,13.26118506,181.02,180.95,5.06]
[1730229365510,13.26118506,181.02,180.94,5.06]
[1730229365806,13.26118506,181.02,180.96,2.763]
[1730229366007,13.26118506,181.02,180.94,5.06]
[1730229366507,2.7625,181.01,180.97,2.7628]
[1730229367405,2.7625,181.0,180.97,2.7628]
[1730229367904,2.7625,181.0,180.96,2.7631]
[1730229368109,13.26118506,181.02,180.95,5.06]
[1730229368511,13.26118506,181.02,180.94,2.7634]
[1730229368705,13.26118506,181.02,180.91,13.26118506]
[1730229368706,2.0703,181.01,180.93,5.06]
[1730229369206,13.26118506,180.98,180.93,5.06]
[1730229369408,2.7633,180.96,180.93,5.06]
[1730229369712,13.26118506,180.98,180.93,5.06]
[1730229369906,13.26118506,180.96,180.87,2.0696]
[1730229370215,13.26118506,180.96,180.79,5.5314]
[1730229370216,2.69893712,180.95,180.88,7.8242]
[1730229370700,13.26118506,180.94,180.88,7.8242]
[1730229371013,2.7639,180.91,180.88,2.7642]
[1730229371209,16.07875374,180.94,180.87,7.8245]
[1730229371411,2.7639,180.92,180.87,7.8245]
[1730229371710,16.07875374,180.94,180.87,5.06]
[1730229372212,2.7639,180.91,180.87,2.7645]
[1730229372403,16.07875374,180.94,180.87,2.7645]
[1730229372599,18.84225374,180.94,180.86,5.06]
[1730229372915,16.07875374,180.94,180.86,5.06]
[1730229373610,2.764,180.91,180.86,5.06]
[1730229374305,18.84215374,180.94,180.86,5.06]
[1730229374508,16.07875374,180.94,180.86,5.06]
[1730229374809,16.07875374,180.94,180.88,2.7642]
[1730229375110,2.7636,180.93,180.86,5.06]
[1730229375504,2.7636,180.93,180.87,2.7645]
[1730229375708,16.07875374,180.94,180.86,5.06]
[1730229375904,2.0281,181.0,180.88,13.26118506]
[1730229376211,15.28928506,181.0,180.88,13.26118506]
[1730229376412,2.7628,180.99,180.92,2.7636]
[1730229376707,2.7628,180.99,180.91,5.06]
[1730229377410,2.7628,180.99,180.93,2.7635]
[1730229377706,18.05188506,181.0,180.91,5.06]
[1730229378108,15.28928506,181.0,180.91,5.06]
[1730229378414,16.02408506,180.98,180.91,5.06]
[1730229378612,13.26118506,180.98,180.91,7.8239]
[1730229379109,2.763,180.97,180.92,2.7637]
[1730229379318,2.80436249,180.96,180.92,2.7637]
[1730229380411,2.80436249,180.96,180.9,5.06]
[1730229380717,16.02408506,180.98,180.93,2.7636]
[1730229381207,15.28928506,181.0,180.9,5.06]
[1730229381401,13.26118506,180.98,180.9,5.06]
[1730229381608,13.26118506,180.96,180.9,5.06]
[1730229381810,13.26118506,180.93,180.83,13.26118506]
[1730229382010,18.5981,181.0,180.84,5.06]
[1730229382011,13.26118506,180.95,180.84,5.06]
[1730229382207,2.7632,180.96,180.92,2.7637]
[1730229382410,2.76634583,180.96,180.9,5.06]
[1730229382615,13.26118506,180.98,180.9,5.06]
[1730229383323,16.02448506,180.95,180.91,2.7639]
[1730229383514,2.77049452,180.94,180.9,5.06]
[1730229384107,5.53399452,180.94,180.9,5.06]
[1730229384311,13.26118506,180.93,180.9,5.06]
[1730229385022,13.26118506,180.93,180.86,5.06]
[1730229385416,2.7639,180.91,180.84,2.7649]
[1730229385611,13.26118506,180.93,180.85,5.06]
[1730229386320,2.764,180.91,180.86,2.7646]
[1730229386519,13.26118506,180.93,180.86,2.7646]
[1730229387216,2.764,180.91,180.86,2.7646]
[1730229387519,2.764,180.91,180.85,5.06]
[1730229387819,13.26118506,180.86,180.81,1.9613]
[1730229388021,13.26118506,180.86,180.82,2.7652]
[1730229388329,13.26118506,180.86,180.81,1.9613]
[1730229388915,13.26118506,180.84,180.77,5.06]
[1730229389315,13.26118506,180.84,180.79,2.7656]
[1730229389511,2.7653,180.83,180.79,2.7656]